bitfinex-derivatives/quotes_ETHF0:USTF0_20260123
["timestamp","ask_amount","ask_price","bid_price","bid_amount"]
[1769179451351,0.00251528,2908.3,2905.8,0.00516182]
[1769179451550,0.91411303,2908.2,2905.8,0.00516182]
[1769179451854,0.17219,2907.3,2905.8,0.00516182]
[1769179452155,10.259,2908.2,2905.8,0.00516182]
[1769179452453,0.17222,2906.9,2905.8,0.00516182]
[1769179452647,0.17218,2907.5,2905.8,0.00516182]
[1769179452850,0.17219,2907.4,2905.8,0.00516182]
[1769179453049,6.498,2908.1,2905.8,0.00516182]
[1769179453050,0.17216,2907.9,2906.0,0.17227]
[1769179453761,0.17216,2907.9,2906.1,0.17226]
[1769179454855,0.00251528,2908.3,2905.8,0.00516182]
[1769179455058,0.00251528,2908.3,2906.3,0.17225]
[1769179455356,0.17215,2908.0,2905.8,0.00516182]
[1769179455757,0.00251528,2908.3,2905.8,0.00516182]
[1769179455953,0.17218,2907.6,2905.8,0.00516182]
[1769179456360,5.357,2908.0,2905.8,0.00516182]
[1769179456561,0.17219,2907.4,2905.8,0.00516182]
[1769179457757,0.17221,2907.1,2905.8,0.00516182]
[1769179458761,0.17221,2907.0,2905.8,0.00516182]
[1769179459264,1.29059995,2907.4,2905.8,0.00516182]
[1769179459265,0.17222,2906.8,2905.8,0.00516182]
[1769179459455,0.00516182,2906.7,2905.0,0.00289378]
[1769179459660,0.17224,2906.4,2905.0,0.00289378]
[1769179460059,0.00516182,2906.7,2905.1,0.17232]
[1769179460968,0.00516182,2906.7,2905.0,0.00289378]
[1769179461458,0.92020341,2906.6,2905.0,0.00289378]
[1769179461658,0.00516182,2906.7,2905.0,0.00289378]
[1769179463673,0.00516182,2906.7,2905.4,0.1723]
[1769179463968,0.00516182,2906.7,2905.5,0.1723]
[1769179465171,0.00516182,2906.7,2905.6,0.17229]
[1769179465675,1.82155385,2908.2,2905.6,1.29059995]
[1769179465877,0.17215,2908.0,2906.2,0.17225]
[1769179466172,0.17215,2908.0,2906.2,9.97225]
[1769179466680,1.82155385,2908.6,2906.3,0.17225]
[1769179466877,0.17215,2908.1,2906.3,0.17225]
[1769179467874,0.17216,2907.8,2906.2,9.8]
[1769179468176,0.17217,2907.7,2905.9,0.00516182]
[1769179468577,0.17217,2907.7,2906.0,9.8]
[1769179469180,1.82406913,2908.3,2906.0,9.8]
[1769179469382,0.17217,2907.7,2906.0,9.8]
[1769179470374,0.17464528,2908.3,2906.1,0.17226]
[1769179470682,0.00251528,2908.3,2906.6,0.17223]
[1769179470979,0.17215,2908.1,2906.1,0.17226]
[1769179471178,1.09227256,2908.0,2906.1,0.17226]
[1769179471482,2.54417842,2907.9,2905.9,0.00516182]
[1769179471784,0.1722,2907.2,2905.9,0.00516182]
[1769179472284,0.17216,2907.8,2905.9,0.00516182]
[1769179472675,1.91551528,2908.3,2905.9,0.00516182]
[1769179472987,0.92037702,2908.2,2906.2,0.17225]
[1769179473180,1.91551528,2908.3,2906.2,0.17225]
[1769179473981,1.91551528,2908.3,2906.2,3.61625]
[1769179476590,0.00251528,2908.3,2906.3,0.17225]
[1769179476887,0.00251528,2908.3,2906.2,3.444]
[1769179476888,0.00251528,2908.3,2906.6,4.25442879]
[1769179477089,0.00251528,2908.3,2907.1,0.1722]
[1769179477284,0.00251528,2908.3,2907.1,0.17509068]
[1769179477483,0.00251528,2908.3,2907.2,9.8]
[1769179477889,0.00251528,2908.3,2907.5,0.00516182]
[1769179478084,1.29059995,2909.4,2907.5,0.00516182]
[1769179478281,0.17208,2909.1,2907.5,0.00516182]
[1769179478591,0.17205,2909.7,2907.5,0.00516182]
[1769179478886,1.25235069,2909.6,2907.5,0.00516182]
[1769179479090,0.91928701,2909.5,2907.5,0.00516182]
[1769179479282,0.00387916,2909.6,2908.2,0.17214]
[1769179479787,0.00387916,2909.6,2907.6,0.17217]
[1769179481084,0.00387916,2909.6,2907.5,0.00516182]
[1769179481293,0.17208,2909.2,2907.5,0.00516182]
[1769179483396,1.29059995,2908.9,2907.5,0.00516182]
[1769179483694,0.1721,2908.8,2907.5,0.00516182]
[1769179485389,0.17211,2908.7,2907.5,0.00516182]
[1769179485595,0.17212,2908.6,2907.1,0.00289068]
[1769179487593,0.00516182,2908.1,2907.2,0.17219]
[1769179487793,0.17208,2909.3,2907.2,0.17219]
[1769179487993,0.17208,2909.3,2907.6,0.00516182]
[1769179488194,0.00387916,2909.6,2907.6,0.00516182]
[1769179488396,0.00387916,2909.6,2907.6,0.17733182]
[1769179489296,0.00387916,2909.6,2907.6,0.00516182]
[1769179489596,0.00387916,2909.6,2908.2,0.17213]
[1769179489795,0.00387916,2909.6,2908.3,0.17213]
[1769179490189,0.00387916,2909.6,2907.7,0.17217]
[1769179490398,1.29059995,2909.4,2907.6,0.00516182]
[1769179490891,0.00387916,2909.6,2907.6,0.00516182]
[1769179490892,0.1721,2908.8,2907.6,0.00516182]
[1769179491093,0.1721,2908.8,2907.1,0.00289068]
[1769179491391,0.00516182,2908.5,2907.1,0.00289068]
[1769179493602,0.00516182,2908.5,2907.1,0.17509068]
[1769179494500,0.00387916,2909.6,2907.1,1.29349063]
[1769179494692,1.29059995,2909.3,2907.5,0.00516182]
[1769179495304,0.17207,2909.4,2907.5,0.00516182]
[1769179496995,0.00387916,2909.6,2907.6,0.17217]
[1769179497204,0.00387916,2909.6,2907.7,0.17217]
[1769179497403,0.00387916,2909.6,2908.2,0.17213]
[1769179497805,0.00387916,2909.6,2907.8,9.8]
[1769179498005,0.00387916,2909.6,2907.9,2.96382884]
[1769179498206,0.00387916,2909.6,2908.3,0.17213]
[1769179499105,0.17197,2911.1,2908.7,0.17211]
[1769179499296,0.91893722,2911.0,2908.7,0.17211]
[1769179499498,0.91893722,2910.9,2908.8,0.1721]
[1769179499700,1.29059995,2911.3,2908.8,0.1721]
[1769179499899,0.17198,2911.0,2908.8,0.1721]
[1769179500096,0.91859326,2910.9,2909.6,0.00516182]
[1769179500304,2.42873846,2912.2,2909.9,0.17204]
[1769179500510,1.29059995,2912.6,2909.6,0.00516182]
[1769179500695,1.29059995,2913.1,2910.7,0.17199]
[1769179500900,0.33298742,2913.0,2910.7,0.17199]
[1769179501095,0.17183,2913.4,2910.9,0.17197]
[1769179501304,0.33303819,2913.3,2910.9,0.00384615]
[1769179501506,0.33303819,2913.2,2910.9,0.00384615]
[1769179501703,0.17189,2912.4,2910.9,0.00384615]
[1769179501903,0.00515278,2912.4,2909.1,4.27630656]
[1769179502208,1.76374404,2912.0,2908.3,4.27630656]
[1769179502407,1.76374404,2912.0,2908.3,3.13595884]
[1769179502603,0.17196,2911.2,2908.5,0.17212]
[1769179502911,0.17522192,2911.2,2908.6,0.17211]
[1769179503502,0.00326192,2911.2,2908.5,0.00347908]
[1769179503809,0.00326192,2911.2,2909.8,0.17204]
[1769179504708,0.00326192,2911.2,2909.6,0.00515278]
[1769179506507,0.17201,2910.5,2908.5,0.00347908]
[1769179507208,0.17201,2910.3,2908.5,0.00347908]
[1769179507708,0.00326192,2911.2,2908.5,0.00347908]
[1769179507914,0.00326192,2911.2,2909.4,0.17206]
[1769179508118,0.00326192,2911.2,2909.6,0.17205]
[1769179509814,0.00326192,2911.2,2909.1,9.8]
[1769179510117,0.00326192,2911.2,2909.3,0.17207]
[1769179510615,0.00326192,2911.2,2909.1,9.8]
[1769179511208,0.17185,2913.0,2909.1,9.8]
[1769179511414,0.17187,2912.8,2910.2,0.17202]
[1769179511613,0.17187,2912.8,2909.4,1.76374404]
[1769179511914,0.17187,2912.8,2909.4,4.72757288]
[1769179512117,0.17187,2912.8,2910.5,0.172]
[1769179512315,0.17477725,2912.8,2910.6,0.17199]
[1769179512515,0.17477725,2912.8,2910.6,0.17551153]
[1769179512818,0.00290725,2912.8,2910.6,0.00352153]
[1769179513121,0.00290725,2912.8,2911.1,0.17196]
[1769179513620,0.00290725,2912.8,2910.6,0.00352153]
[1769179513923,0.00515278,2912.2,2910.6,0.00352153]
[1769179514114,0.17191,2912.0,2910.6,0.00352153]
[1769179515111,0.17193,2911.8,2908.4,2.96382884]
[1769179515414,0.17193,2911.8,2908.8,9.8]
[1769179515711,0.17189,2912.5,2908.8,9.8]
[1769179515914,0.17189,2912.5,2910.0,0.17203]
[1769179516220,0.17189,2912.5,2910.1,1.19005756]
[1769179516421,0.00515278,2911.5,2910.1,1.19005756]
[1769179517117,0.00515278,2911.5,2910.0,0.00342716]
[1769179518207,1.16479592,2911.2,2910.0,0.00342716]
[1769179518419,0.99283592,2911.2,2909.0,1.01803756]
[1769179518615,0.17197,2911.0,2909.0,1.01803756]
[1769179518813,0.17198,2910.9,2908.8,9.8]
[1769179519011,0.17198,2910.9,2908.5,1.19015756]
[1769179519522,0.17198,2910.9,2908.6,1.19014756]
[1769179519713,0.99283592,2910.3,2908.5,0.00259882]
[1769179519912,1.16486592,2910.0,2908.5,0.00259882]
[1769179520118,1.16488592,2909.7,2907.4,1.01803756]
[1769179520720,0.00515278,2908.8,2907.4,1.01803756]
[1769179521323,0.00515278,2908.8,2907.4,1.02099422]
[1769179521527,0.00515278,2908.8,2907.4,0.00295666]
[1769179522322,3.44,2908.7,2907.4,0.00295666]
[1769179522527,0.00515278,2908.8,2907.4,1.02099422]
[1769179522920,0.00515278,2908.8,2907.4,0.00295666]
[1769179523321,3.44,2908.7,2907.4,0.00295666]
[1769179524522,0.99283592,2908.6,2906.2,1.01803756]
[1769179524720,0.17212,2908.5,2906.2,1.01803756]
[1769179525024,1.16495592,2908.5,2906.2,1.01803756]
[1769179525623,1.16495592,2908.5,2906.2,1.0222654]
[1769179526126,3.441,2908.6,2906.6,1.01803756]
[1769179526324,3.441,2908.6,2906.6,1.19026756]
[1769179526526,0.00515278,2908.8,2906.6,1.19026756]
[1769179526722,0.00515278,2908.8,2906.8,1.01803756]
[1769179529325,0.00515278,2908.8,2906.9,0.17221]
[1769179529627,0.00515278,2908.8,2907.0,0.98675644]
[1769179529924,0.00515278,2908.8,2906.4,0.98675644]
[1769179530131,0.17211,2908.7,2906.4,0.98675644]
[1769179530429,1.15535258,2908.6,2906.4,0.98675644]
[1769179530628,0.17213,2908.4,2906.4,0.98675644]
[1769179531122,3.441,2908.3,2906.4,0.98675644]
[1769179531629,0.00515278,2908.8,2906.8,0.98675644]
[1769179531825,0.00515278,2908.8,2906.8,1.15897644]
[1769179532026,0.00515278,2908.8,2907.1,1.01195648]
[1769179532232,0.00515278,2908.8,2907.5,1.01195648]
[1769179532433,3.442,2909.8,2907.5,1.01195648]
[1769179532735,3.442,2909.8,2907.8,1.01195648]
[1769179533526,0.98437016,2910.3,2907.8,1.01195648]
[1769179533723,0.0037355,2910.3,2908.5,1.01195648]
[1769179534025,0.0037355,2910.3,2908.7,1.01195648]
[1769179534927,0.0037355,2910.3,2909.2,0.00515278]
[1769179535636,1.15265466,2910.2,2908.5,0.00268601]
[1769179535933,1.15267466,2909.9,2908.5,0.00268601]
[1769179536230,0.00515278,2910.0,2908.5,1.01464249]
[1769179537234,0.0037355,2910.3,2909.0,1.18919926]
[1769179537935,0.98063466,2911.8,2909.2,1.01195648]
[1769179538241,0.98063466,2911.8,2909.6,1.18400648]
[1769179538442,0.98063466,2911.8,2909.0,1.01195648]
[1769179538826,0.98063466,2911.8,2909.1,9.8]
[1769179539033,0.98063466,2911.3,2909.1,9.8]
[1769179539234,0.98063466,2911.3,2909.0,1.01195648]
[1769179539432,0.98063466,2910.8,2908.5,0.00268601]
[1769179539629,3.441,2910.7,2908.5,1.01464249]
[1769179540235,0.00515278,2909.9,2908.5,0.00268601]
[1769179540437,0.17719278,2909.9,2908.5,0.00268601]
[1769179540836,0.17719278,2909.9,2908.5,1.01464249]
[1769179540837,0.00515278,2909.9,2908.5,1.01464249]
[1769179541539,0.17196,2911.3,2908.9,1.18405648]
[1769179541734,3.441,2911.2,2908.9,1.18405648]
[1769179541938,3.61296,2911.2,2908.9,1.18920926]
[1769179542430,0.17197,2911.1,2908.9,1.18920926]
[1769179542634,1.15260466,2911.1,2908.9,1.18920926]
[1769179543738,0.85260466,2911.1,2908.9,1.18920926]
[1769179544040,1.02457466,2911.1,2908.9,1.18920926]
[1769179544240,0.17197,2911.0,2908.9,1.18920926]
[1769179544638,3.441,2911.2,2908.9,1.18920926]
[1769179544840,0.172,2910.6,2908.9,0.00515278]
[1769179545243,0.17201,2910.5,2908.9,0.00515278]
[1769179548739,0.98063466,2910.6,2908.9,0.00515278]
[1769179548945,0.17206,2909.5,2908.5,0.00268601]
[1769179549239,0.17206,2909.5,2907.1,3.441]
[1769179549240,0.17209,2909.1,2907.1,3.441]
[1769179549440,0.17209,2909.1,2907.2,9.8]
[1769179549640,0.17209,2909.1,2907.1,3.441]
[1769179549941,0.98063466,2909.4,2907.1,3.441]
[1769179550147,0.1721,2908.8,2907.1,3.44469377]
[1769179550840,0.00515278,2908.2,2907.1,3.44469377]
[1769179551634,0.00434685,2909.1,2907.2,1.01195648]
[1769179551833,0.00434685,2909.1,2907.5,1.01195648]
[1769179552446,0.00434685,2909.1,2907.6,1.18412648]
[1769179552649,0.00434685,2909.1,2907.8,1.01195648]
[1769179553046,1.97854722,2910.5,2907.8,1.01195648]
[1769179553241,0.91205459,2910.4,2908.2,0.17213]
[1769179553447,5.525,2910.5,2908.3,1.01195648]
[1769179553643,1.08409725,2910.4,2908.3,1.18408648]
[1769179553948,1.89272067,2910.3,2909.1,0.00515278]
[1769179554142,0.17203,2910.0,2908.3,1.01195648]
[1769179554348,0.00515278,2909.6,2908.3,1.01195648]
[1769179554549,0.00515278,2909.6,2907.7,1.18411648]
[1769179555049,0.17206,2909.5,2907.7,1.01195648]
[1769179555749,0.00515278,2909.6,2908.3,1.01195648]
[1769179557744,0.00515278,2909.6,2907.7,1.01195648]
[1769179558349,0.98063466,2909.4,2907.2,3.441]
[1769179558544,0.98063466,2908.9,2907.1,0.00369377]
[1769179558749,0.17214,2908.2,2907.1,0.00369377]
[1769179558952,0.17527613,2908.2,2907.1,0.00369377]
[1769179559350,0.00313613,2908.2,2907.1,0.00369377]
[1769179562251,0.00313613,2908.2,2907.1,0.97869811]
[1769179562757,3.442,2909.8,2907.5,0.97500434]
[1769179562947,0.91327963,2909.7,2907.5,0.97500434]
[1769179563148,0.91327963,2909.6,2907.6,1.14717434]
[1769179563347,3.442,2909.8,2907.6,1.14717434]
[1769179563657,3.44539617,2909.8,2907.8,1.14716434]
[1769179563952,0.00339617,2909.8,2908.1,0.17214]
[1769179564153,0.00339617,2909.8,2908.2,0.97500434]
[1769179564454,0.00339617,2909.8,2908.3,0.97500434]
[1769179565259,0.00339617,2909.8,2908.4,0.17212]
[1769179565752,0.00339617,2909.8,2908.4,1.14712434]
[1769179565954,0.00339617,2909.8,2908.6,0.97500434]
[1769179566857,0.00515278,2909.5,2908.4,0.17212]
[1769179567757,0.00515278,2909.5,2908.2,1.02684829]
[1769179567957,0.17721278,2909.5,2907.7,1.02684829]
[1769179568158,0.17208,2909.2,2907.5,3.442]
[1769179568460,1.04304204,2909.5,2907.1,1.20274206]
[1769179568759,1.03788926,2909.1,2907.1,0.00369377]
[1769179568961,0.17212,2908.5,2907.1,0.00369377]
[1769179569159,0.17216,2907.9,2906.0,3.442]
[1769179569350,0.17216,2907.9,2905.9,1.19911829]
[1769179569658,1.03788926,2908.3,2905.5,9.8]
[1769179569962,0.17219,2907.4,2905.3,1.02684829]
[1769179570263,0.1760623,2907.4,2905.3,10.83116683]
[1769179570452,0.1722,2907.2,2905.3,1.03116683]
[1769179570855,0.0038723,2907.4,2905.3,1.03116683]
[1769179571056,0.0038723,2907.4,2905.7,1.02684829]
[1769179572160,3.442,2908.6,2906.2,1.02684829]
[1769179572355,0.91593326,2908.5,2906.2,1.02684829]
[1769179572556,0.91593326,2908.4,2906.2,1.19910829]
[1769179572751,0.17211,2908.6,2906.2,1.19910829]
[1769179572954,1.08798443,2908.5,2906.2,1.19910829]
[1769179573154,1.21001926,2908.4,2906.2,1.19910829]
[1769179573463,7.47983558,2908.3,2906.2,1.02684829]
[1769179573659,1.21002926,2908.2,2906.2,1.02684829]
[1769179573860,1.95359,2908.1,2906.2,1.02684829]
[1769179574157,0.00515278,2907.5,2906.2,1.02684829]
[1769179574462,0.00301277,2908.5,2906.9,0.00515278]
[1769179575754,0.00301277,2908.5,2906.9,1.03200107]
[1769179576158,0.17213,2908.4,2906.9,0.00515278]
[1769179576362,1.04090203,2908.5,2906.9,0.00515278]
[1769179576551,1.03788926,2908.3,2905.8,1.02684829]
[1769179576757,1.03788926,2908.1,2905.4,0.1723]
[1769179576957,0.1722,2907.2,2905.3,1.03116683]
[1769179577458,0.17221,2907.0,2905.3,1.03116683]
[1769179577768,1.03788926,2907.4,2905.3,0.00431854]
[1769179578064,0.17223,2906.6,2905.3,0.00431854]
[1769179579053,0.17225,2906.4,2905.3,0.00431854]
[1769179579260,0.17225,2906.3,2905.3,0.00431854]
[1769179579461,0.17227,2906.1,2904.1,10.82684829]
[1769179579957,0.00356274,2906.4,2904.1,1.02684829]
[1769179580160,0.17227,2905.9,2904.1,1.02684829]
[1769179580555,0.17227,2905.9,2904.1,1.03070714]
[1769179581258,0.00356274,2906.4,2904.1,1.20308714]
[1769179582060,1.041452,2906.4,2904.1,1.20308714]
[1769179582359,0.17226,2906.1,2904.1,1.03070714]
[1769179582559,0.17228,2905.9,2904.1,1.03070714]
[1769179584364,1.041452,2906.4,2904.1,1.03070714]
[1769179584660,0.17581274,2906.4,2904.3,1.19920829]
[1769179585065,0.17225,2906.3,2904.3,1.19920829]
[1769179585264,0.17226,2906.2,2904.3,1.19920829]
[1769179585468,1.041452,2906.4,2904.3,1.02684829]
[1769179585969,0.17228,2905.8,2904.3,1.02684829]
[1769179586359,0.17229,2905.7,2904.3,1.02684829]
[1769179586662,0.17229,2905.7,2904.1,0.00385885]
[1769179587060,0.17229,2905.6,2904.1,0.00385885]
[1769179587257,1.03788926,2905.8,2904.1,0.00385885]
[1769179587457,0.17231,2905.3,2904.1,0.00385885]
[1769179587657,0.00516182,2905.1,2904.1,0.00385885]
[1769179588058,0.17748182,2905.1,2904.1,0.00385885]
[1769179588259,0.00516182,2905.1,2904.1,1.03070714]
[1769179588670,0.00516182,2905.1,2904.1,0.00385885]
[1769179589056,0.00516182,2905.1,2904.1,1.03070714]
[1769179589462,0.17234,2904.8,2903.0,1.02684829]
[1769179589764,0.17235,2904.7,2903.0,1.02684829]
[1769179590156,0.00516182,2905.1,2903.0,1.02684829]
[1769179590357,0.00516182,2905.1,2903.5,1.02684829]
[1769179590558,0.00516182,2905.1,2903.5,1.03105986]
[1769179591158,0.00516182,2905.1,2903.7,1.02684829]
[1769179591668,0.00516182,2905.1,2903.9,1.02684829]
[1769179594070,0.00516182,2905.1,2903.5,0.00421157]
[1769179594071,0.98932443,2907.3,2904.6,1.02349652]
[1769179594262,0.17223,2906.6,2904.6,1.02349652]
[1769179594461,0.17223,2906.6,2904.9,1.02349652]
[1769179595669,3.445,2907.1,2904.9,1.19582652]
[1769179595868,0.17221,2907.0,2904.9,1.19582652]
[1769179596064,0.17222,2906.8,2904.9,1.19582652]
[1769179596573,0.17223,2906.6,2904.9,1.02349652]
[1769179596871,0.17223,2906.6,2905.0,9.8]
[1769179597370,0.17223,2906.6,2904.9,1.02349652]
[1769179597770,3.445,2907.1,2904.9,1.19582652]
[1769179598069,3.6172,2907.1,2904.9,1.19582652]
[1769179598459,0.17224,2906.5,2904.9,1.02349652]
[1769179598661,0.17581274,2906.4,2904.9,1.02349652]
[1769179600864,0.17225,2906.3,2904.9,1.02349652]
[1769179601678,0.17226,2906.1,2904.4,1.02349652]
[1769179601970,0.17229,2905.6,2904.2,0.00516182]
[1769179602568,0.17226,2906.2,2904.2,1.02865834]
[1769179602871,1.08819398,2906.1,2904.2,1.02865834]
[1769179603073,0.17226,2906.1,2904.2,1.02865834]
[1769179604273,0.17226,2906.1,2904.4,1.02349652]
[1769179604568,0.00356274,2906.4,2904.7,1.02349652]
[1769179604873,0.00356274,2906.4,2905.1,0.17232]
[1769179605165,0.17219,2907.3,2905.5,1.19579652]
[1769179605370,0.17216,2907.8,2905.7,1.02349652]
[1769179605571,0.91828166,2907.7,2905.7,1.02349652]
[1769179605764,0.91828166,2907.6,2905.7,1.02349652]
[1769179605966,0.91828166,2907.5,2905.7,1.02697317]
[1769179606168,0.91828166,2907.5,2906.5,0.00516182]
[1769179606473,0.00382263,2907.6,2906.5,1.02865834]
[1769179607364,0.00382263,2907.6,2906.5,0.00516182]
[1769179607671,0.98932443,2907.4,2905.7,0.00347665]
[1769179607869,0.17223,2906.6,2905.7,0.00347665]
[1769179608165,0.91791648,2906.5,2905.7,6.65e-06]
[1769179608371,0.17228,2905.8,2903.9,1.02349652]
[1769179608577,0.1723,2905.5,2903.9,1.02349652]
[1769179608967,0.00516182,2905.1,2903.9,1.02349652]
[1769179609266,0.17226,2906.2,2903.9,1.02796667]
[1769179609576,3.445,2906.3,2904.5,1.02349652]
[1769179609769,0.91807005,2906.2,2904.5,1.02349652]
[1769179609970,3.445,2906.3,2904.5,1.02349652]
[1769179610275,3.44922162,2906.3,2904.5,1.02349652]
[1769179610462,3.62147162,2906.3,2904.5,1.02349652]
[1769179610970,0.1723,2905.6,2904.4,0.00516182]
[1769179611164,1.09019987,2905.5,2904.4,0.00516182]
[1769179611479,0.17232,2905.5,2904.4,0.00516182]
[1769179612362,0.91737118,2905.4,2904.4,0.00516182]
[1769179612571,0.98932443,2905.9,2903.9,0.00447015]
[1769179612572,0.00516182,2905.2,2903.9,0.00447015]
[1769179612768,0.17239,2904.3,2903.0,3.445]
[1769179612968,0.17235,2905.0,2903.1,1.02349652]
[1769179613278,0.91706758,2904.9,2903.1,1.02349652]
[1769179613573,0.17235,2904.9,2903.1,1.02349652]
[1769179613778,0.17238,2904.5,2903.1,0.00442356]
[1769179614475,0.98932443,2904.3,2902.1,9.8]
[1769179614678,0.91555329,2904.2,2902.1,9.8]
[1769179614863,0.98932443,2904.3,2902.2,1.02349652]
[1769179615068,0.91547806,2904.2,2902.2,1.02349652]
[1769179615270,0.17241,2903.9,2902.2,1.02349652]
[1769179615468,0.17241,2903.9,2901.8,0.17253]
[1769179615671,0.17245,2903.2,2901.8,0.00264048]
[1769179616063,4.57662235,2903.8,2901.8,0.00264048]
[1769179616266,0.17247,2902.9,2901.8,0.00264048]
[1769179616575,3.58729792,2903.8,2901.0,1.02349652]
[1769179616576,1.915,2903.1,2901.0,1.02349652]
[1769179616767,0.1725,2902.4,2900.0,1.02349652]
[1769179617078,1.90202275,2903.0,2899.4,2.96382884]
[1769179617079,0.98932443,2903.0,2900.3,1.19611652]
[1769179617371,0.98932443,2902.8,2900.5,1.02349652]
[1769179617672,0.00516182,2901.5,2900.5,0.00276212]
[1769179617877,0.00802252,2901.5,2900.5,0.00276212]
[1769179618276,0.17249,2902.6,2900.5,1.02625864]
[1769179618680,0.17249,2902.6,2900.7,0.0051708]
[1769179619174,0.98932443,2902.8,2900.7,0.0051708]
[1769179619375,1.90114976,2902.7,2900.7,0.0051708]
[1769179619673,0.17253,2901.9,2900.7,0.0051708]
[1769179620269,0.17254,2901.8,2900.7,0.0051708]
[1769179620573,0.17249,2902.6,2900.7,1.02866732]
[1769179620771,3.45136517,2902.8,2900.9,1.02349652]
[1769179620969,0.00436517,2902.8,2901.2,1.02349652]
[1769179621169,0.17684517,2902.8,2901.2,1.02349652]
[1769179621374,0.17249,2902.5,2900.7,0.0051708]
[1769179621665,0.17251,2902.2,2900.7,0.0051708]
[1769179621867,0.17253,2901.9,2900.7,0.0051708]
[1769179622277,0.17249,2902.6,2900.7,1.0408576]
[1769179622481,0.17249,2902.5,2900.7,1.0408576]
[1769179622781,0.00436517,2902.8,2900.7,1.0408576]
[1769179622980,0.17249,2902.6,2900.7,1.0408576]
[1769179623380,0.00436517,2902.8,2900.9,1.0356868]
[1769179623577,0.00436517,2902.8,2901.4,1.0356868]
[1769179623777,0.17241,2903.9,2901.6,1.0356868]
[1769179623994,0.17241,2903.9,2901.8,1.0356868]
[1769179624282,0.17242,2903.8,2901.9,1.0356868]
[1769179624479,0.27500451,2905.1,2902.2,1.2081968]
[1769179624480,3.448,2905.0,2902.2,1.2081968]
[1769179624785,0.1724,2904.1,2902.6,1.0408576]
[1769179624981,0.17236,2904.8,2902.6,1.04484272]
[1769179625284,0.17237,2904.5,2902.6,1.04484272]
[1769179627086,0.17238,2904.4,2902.6,1.04484272]
[1769179627780,0.00250155,2905.0,2903.1,0.97615315]
[1769179627980,0.17237,2904.7,2903.1,0.97615315]
[1769179628181,1.04076453,2905.0,2902.6,0.98530907]
[1769179628382,0.17239,2904.3,2902.6,0.98530907]
[1769179628586,0.17239,2904.2,2902.6,0.98530907]
[1769179628780,1.03826298,2904.5,2902.6,0.00915592]
[1769179628987,0.17242,2903.8,2902.6,0.00915592]
[1769179629582,1.03826298,2904.2,2902.6,0.00915592]
[1769179629890,0.17249,2902.5,2900.7,0.97615315]
[1769179630785,0.00387064,2902.5,2900.7,0.979806]
[1769179630990,0.17245,2903.2,2900.9,0.97615315]
[1769179631190,0.17245,2903.2,2901.2,0.97615315]
[1769179631581,0.17243,2903.6,2901.5,0.97615315]
[1769179631885,0.17243,2903.6,2901.5,1.14870315]
[1769179632086,0.17243,2903.5,2901.5,1.14870315]
[1769179632285,0.17244,2903.4,2901.5,0.97615315]
[1769179632484,0.17245,2903.3,2901.5,0.97615315]
[1769179632677,0.00437461,2903.6,2901.5,0.97615315]
[1769179632891,1.03826298,2903.2,2900.8,0.97615315]
[1769179633191,0.1725,2902.4,2900.8,0.97615315]
[1769179633490,0.0051708,2902.3,2900.8,0.97615315]
[1769179634987,0.0051708,2902.3,2901.0,0.97615315]
[1769179635579,0.17248,2902.8,2901.0,0.97615315]
[1769179635778,0.17248,2902.8,2901.4,0.0051708]
[1769179636287,1.03826298,2903.5,2901.4,0.98132395]
[1769179636491,1.03826298,2902.8,2901.4,0.0051708]
[1769179636791,1.03826298,2903.4,2901.4,0.98132395]
[1769179637085,1.03826298,2903.4,2901.4,0.0051708]
[1769179637283,0.17249,2902.5,2901.4,0.0051708]
[1769179637686,0.00437461,2903.6,2901.4,0.98132395]
[1769179638083,1.04263759,2903.6,2901.4,0.98132395]
[1769179638292,1.03826298,2903.2,2901.4,0.0051708]
[1769179638590,0.17248,2902.7,2901.4,0.0051708]
[1769179638790,1.03826298,2903.2,2901.4,0.0051708]
[1769179638993,0.17252,2902.1,2901.4,0.0051708]
[1769179639382,1.04343378,2902.6,2900.7,0.00365285]
[1769179639588,1.03826298,2902.4,2900.7,0.00365285]
[1769179639787,0.17253,2901.9,2900.7,0.00365285]
[1769179640192,0.17254,2901.7,2900.7,0.00365285]
[1769179640493,1.03826298,2901.9,2900.7,2.85e-06]
[1769179640693,0.17257,2901.2,2899.6,0.97615315]
[1769179640890,0.17259,2900.8,2899.6,0.97615315]
[1769179641291,0.17259,2900.8,2899.4,3.449]
[1769179641496,1.03826298,2901.8,2899.4,3.449]
[1769179641690,0.17566727,2900.8,2899.4,0.00373191]
[1769179641995,0.1726,2900.7,2899.4,0.00373191]
[1769179642192,0.17263,2900.2,2899.4,0.00373191]
[1769179642391,1.03826298,2900.5,2898.4,0.97615315]
[1769179642591,0.1726,2900.7,2898.4,0.97615315]
[1769179642790,0.1726,2900.7,2898.6,0.97615315]
[1769179642992,0.1726,2900.7,2898.8,0.97615315]
[1769179643302,0.1726,2900.7,2898.8,0.97969132]
[1769179643996,0.00306727,2900.8,2899.0,1.14885315]
[1769179644194,0.00306727,2900.8,2899.3,0.97615315]
[1769179644495,0.17252,2902.0,2899.9,0.97615315]
[1769179644695,0.17257,2901.3,2899.5,0.97615315]
[1769179644887,1.03826298,2901.8,2899.5,0.97615315]
[1769179645402,0.00296049,2901.8,2900.2,1.14878315]
[1769179646499,0.00296049,2901.8,2900.4,0.97615315]
[1769179646903,0.17247,2902.9,2900.7,0.97615315]
[1769179647196,0.17247,2902.9,2900.7,1.14875315]
[1769179647399,0.17243,2903.5,2901.2,0.97615315]
[1769179647695,0.17241,2903.9,2901.6,0.97615315]
[1769179647892,0.17648482,2903.9,2901.6,0.97931112]
[1769179648094,0.17648482,2903.9,2902.0,0.97615315]
[1769179648898,0.17648482,2903.9,2902.2,0.97615315]
[1769179649095,0.00407482,2903.9,2902.2,0.97615315]
[1769179650601,0.17242,2903.8,2902.2,0.97615315]
[1769179650903,1.0423378,2903.9,2901.8,4.42615315]
[1769179651106,1.2147478,2903.9,2901.9,0.97615315]
[1769179651401,0.17648482,2903.9,2901.9,0.97615315]
[1769179651798,0.00407482,2903.9,2901.9,0.97615315]
[1769179652596,0.17242,2903.7,2901.9,0.97615315]
[1769179652792,0.17246,2903.2,2901.6,0.00315797]
[1769179652996,0.17248,2902.8,2901.6,0.00315797]
[1769179653192,1.03097851,2903.9,2901.6,1.00832953]
[1769179653401,1.03097851,2903.9,2901.6,0.00315797]
[1769179653402,1.02690369,2903.7,2901.6,0.00315797]
[1769179653608,0.17249,2902.6,2901.6,0.00315797]
[1769179654103,0.17249,2902.5,2901.6,0.00315797]